bitfinex/quotes_BTCUSD_20220731
["timestamp","ask_amount","ask_price","bid_price","bid_amount"]
[1659296754277,0.03459876,23878.0,23876.0,0.00179161]
[1659296754845,0.490783,23877.0,23876.0,0.00170299]
[1659296755070,0.19,23877.0,23876.0,0.00170299]
[1659296755284,0.19,23877.0,23876.0,0.00289804]
[1659296755753,0.52538176,23877.0,23876.0,0.00289804]
[1659296755969,0.56738176,23877.0,23876.0,0.00289804]
[1659296756656,0.26659876,23877.0,23876.0,0.00289804]
[1659296757391,0.22964601,23877.0,23876.0,0.00289804]
[1659296758065,0.27364601,23877.0,23876.0,0.00289804]
[1659296758738,0.57442901,23877.0,23876.0,0.00289804]
[1659296759195,0.27364601,23877.0,23876.0,0.00289804]
[1659296759434,0.53042901,23877.0,23876.0,0.00289804]
[1659296760144,0.56642901,23877.0,23876.0,0.00289804]
[1659296760596,0.48183025,23877.0,23876.0,0.00289804]
[1659296761266,0.48042901,23877.0,23876.0,0.00289804]
[1659296761737,0.53042901,23877.0,23876.0,0.00289804]
[1659296762230,0.56942901,23877.0,23876.0,0.00289804]
[1659296763397,0.53042901,23877.0,23876.0,0.00289804]
[1659296764084,0.57842901,23877.0,23876.0,0.00289804]
[1659296764292,0.54383025,23877.0,23876.0,0.00912871]
[1659296764513,0.54383025,23877.0,23876.0,0.00289804]
[1659296765244,0.49583025,23877.0,23876.0,0.00289804]
[1659296765473,0.14504725,23877.0,23876.0,0.00289804]
[1659296765904,0.19304725,23877.0,23876.0,0.00289804]
[1659296766787,0.54383025,23877.0,23876.0,0.00289804]
[1659296767209,0.49583025,23877.0,23876.0,0.00289804]
[1659296767889,0.56942901,23877.0,23876.0,0.00289804]
[1659296768330,0.26864601,23877.0,23876.0,0.00289804]
[1659296768545,0.56942901,23877.0,23876.0,0.00289804]
[1659296769022,0.26864601,23877.0,23876.0,0.00289804]
[1659296769245,0.53042901,23877.0,23876.0,0.00289804]
[1659296769928,0.57842901,23877.0,23876.0,0.00289804]
[1659296770357,0.27764601,23877.0,23876.0,0.00289804]
[1659296770556,0.57842901,23877.0,23876.0,0.00289804]
[1659296770758,0.78781818,23877.0,23875.0,0.10403319]
[1659296770986,0.350783,23876.0,23875.0,0.10042019]
[1659296771198,0.05,23876.0,23875.0,0.10042019]
[1659296771452,0.05,23876.0,23874.0,0.314077]
[1659296771798,0.05504725,23876.0,23874.0,0.32037371]
[1659296772002,0.09504725,23876.0,23874.0,0.0062223]
[1659296772209,0.09504725,23876.0,23874.0,0.10475952]
[1659296772795,0.09504725,23876.0,23874.0,0.104694]
[1659296773004,0.09504725,23876.0,23874.0,0.10475953]
[1659296773204,0.05504725,23876.0,23874.0,0.10475953]
[1659296773660,0.05504725,23876.0,23874.0,0.15287072]
[1659296773882,0.56607186,23875.0,23874.0,0.14663953]
[1659296774111,0.56607186,23875.0,23874.0,0.146574]
[1659296774541,0.56607186,23875.0,23874.0,0.15280519]
[1659296774749,0.56607186,23875.0,23874.0,0.104694]
[1659296775178,0.56607186,23875.0,23874.0,0.10589056]
[1659296775617,0.56607186,23875.0,23874.0,0.11251288]
[1659296775824,0.60907186,23875.0,23874.0,0.62189688]
[1659296776258,0.60907186,23875.0,23874.0,0.61527456]
[1659296776731,0.043,23875.0,23874.0,0.65722897]
[1659296776952,0.043,23875.0,23874.0,0.61534897]
[1659296777160,0.00504725,23875.0,23874.0,0.31534897]
[1659296777790,0.00504725,23875.0,23874.0,0.61527456]
[1659296778013,0.05504725,23875.0,23874.0,1.0659363]
[1659296778904,0.05504725,23875.0,23874.0,1.1078163]
[1659296779353,0.00504725,23875.0,23874.0,1.1078163]
[1659296779818,0.00504725,23875.0,23874.0,1.06586189]
[1659296780075,0.00504725,23875.0,23874.0,1.1459363]
[1659296780759,0.00504725,23875.0,23874.0,1.1309363]
[1659296781191,0.00504725,23875.0,23874.0,1.17403348]
[1659296781408,0.00504725,23875.0,23874.0,1.13215348]
[1659296781833,0.00504725,23875.0,23874.0,1.05215348]
[1659296782050,0.00504725,23875.0,23874.0,1.17403348]
[1659296782475,0.00504725,23875.0,23874.0,1.13215348]
[1659296783218,0.00504725,23875.0,23874.0,1.05290029]
[1659296783993,0.00504725,23875.0,23874.0,1.13145029]
[1659296784627,0.00504725,23875.0,23874.0,1.08957029]
[1659296784840,0.00504725,23875.0,23874.0,1.13290029]
[1659296785069,0.00504725,23875.0,23874.0,1.17478029]
[1659296785518,0.00504725,23875.0,23874.0,1.46435029]
[1659296785733,0.00504725,23875.0,23874.0,1.10290029]
[1659296785960,0.00504725,23875.0,23874.0,1.13290029]
[1659296786182,0.00504725,23875.0,23874.0,1.17478029]
[1659296786893,0.00504725,23875.0,23874.0,1.13290029]
[1659296787111,0.00504725,23875.0,23874.0,1.22478029]
[1659296787333,0.00504725,23875.0,23874.0,1.14478029]
[1659296787544,0.00504725,23875.0,23874.0,1.09478029]
[1659296787996,0.00504725,23875.0,23874.0,1.17478029]
[1659296789757,0.00504725,23875.0,23874.0,1.09478029]
[1659296789980,0.20933577,23880.0,23875.0,1.252]
[1659296790211,0.3979,23888.0,23880.0,0.40725733]
[1659296790432,0.4479,23888.0,23881.0,1.03413733]
[1659296790705,0.4479,23888.0,23882.0,0.40725733]
[1659296791145,0.05,23887.0,23883.0,0.04188]
[1659296791365,0.4379,23888.0,23884.0,0.40733174]
[1659296791597,0.5833,23890.0,23885.0,0.40725733]
[1659296792017,0.045,23887.0,23885.0,0.40725733]
[1659296792956,0.07959876,23887.0,23885.0,0.40725733]
[1659296793229,0.045,23887.0,23885.0,0.51189933]
[1659296793462,1.01817522,23892.0,23886.0,0.70725733]
[1659296793675,1.01817522,23892.0,23887.0,0.51188833]
[1659296793909,0.61877522,23892.0,23887.0,0.51188833]
[1659296794132,0.61877522,23892.0,23887.0,0.82577733]
[1659296794360,0.61877522,23892.0,23885.0,0.033]
[1659296794361,0.300783,23891.0,23885.0,0.033]
[1659296794594,0.300783,23891.0,23885.0,0.44025733]
[1659296794595,0.60002,23891.0,23885.0,0.44025733]
[1659296795036,0.5686,23891.0,23885.0,0.44025733]
[1659296795261,0.6186,23891.0,23885.0,0.40725733]
[1659296795993,0.300783,23890.0,23885.0,0.40725733]
[1659296796232,0.6976,23891.0,23885.0,0.40725733]
[1659296796674,0.6876,23891.0,23886.0,0.00120136]
[1659296796903,0.6876,23891.0,23887.0,0.51188333]
[1659296797126,0.079,23891.0,23888.0,7.441e-05]
[1659296797355,0.40947699,23892.0,23888.0,7.441e-05]
[1659296797588,0.44947699,23892.0,23888.0,7.441e-05]
[1659296798015,0.49347699,23892.0,23888.0,7.441e-05]
[1659296798668,0.03459876,23891.0,23887.0,0.40725733]
[1659296799116,0.12459876,23891.0,23887.0,0.40725733]
[1659296799647,0.12459876,23891.0,23888.0,7.441e-05]
[1659296800093,0.20359876,23891.0,23887.0,0.40725733]
[1659296800538,0.20359876,23891.0,23887.0,0.5131886]
[1659296800992,0.4128798,23891.0,23888.0,7.441e-05]
[1659296801203,0.4128798,23891.0,23888.0,0.104639]
[1659296801442,0.3338798,23891.0,23888.0,0.10473961]
[1659296801656,0.3338798,23891.0,23888.0,0.104639]
[1659296802118,0.4128798,23891.0,23888.0,0.104639]
[1659296803325,0.3338798,23891.0,23888.0,0.104639]
[1659296803555,0.3338798,23891.0,23889.0,7.441e-05]
[1659296803556,0.29928104,23891.0,23889.0,7.441e-05]
[1659296803771,0.25928104,23891.0,23889.0,0.10470641]
[1659296803987,0.30628104,23891.0,23889.0,0.08828311]
[1659296805378,0.25928104,23891.0,23889.0,0.08828311]
[1659296805597,0.25928104,23891.0,23889.0,0.09079985]
[1659296805816,0.300783,23890.0,23889.0,0.09079985]
[1659296806101,0.30628104,23891.0,23889.0,0.09079985]
[1659296807406,0.3409542,23891.0,23889.0,0.09079985]
[1659296807622,0.30628104,23891.0,23889.0,0.09079985]
[1659296808049,0.35328104,23891.0,23889.0,0.09079985]
[1659296808489,0.3879542,23891.0,23889.0,0.09079985]
[1659296808723,0.3879542,23891.0,23889.0,0.09204696]
[1659296809379,0.2939542,23891.0,23889.0,0.09204696]
[1659296809818,0.25928104,23891.0,23889.0,0.09204696]
[1659296810049,0.30628104,23891.0,23889.0,0.09204696]
[1659296810506,0.3409542,23891.0,23889.0,0.09204696]
[1659296811436,0.2939542,23891.0,23889.0,0.09204696]
[1659296811901,0.490783,23890.0,23889.0,0.00124385]
[1659296812132,0.490783,23890.0,23881.0,0.0317152]
[1659296812133,0.00123615,23889.0,23881.0,0.0317152]
[1659296812354,0.00123615,23889.0,23882.0,0.40725733]
[1659296812646,0.40725733,23888.0,23881.0,0.40725733]
[1659296812881,0.45725733,23888.0,23881.0,0.40725733]
[1659296813112,0.45725733,23888.0,23882.0,0.04188]
[1659296813563,0.60834898,23884.0,23882.0,0.0431285]
[1659296815868,0.60834898,23884.0,23882.0,0.0012485]
[1659296816098,0.03467316,23883.0,23882.0,0.0012485]
[1659296816546,0.03467316,23883.0,23882.0,0.0012263]
[1659296817891,0.41345616,23883.0,23882.0,0.0012263]
[1659296818113,0.078,23883.0,23882.0,0.0431063]
[1659296818349,0.078,23883.0,23882.0,0.49369363]
[1659296818615,0.078,23883.0,23882.0,0.79369363]
[1659296819338,0.20929144,23889.0,23882.0,0.79369363]
[1659296819583,0.04,23888.0,23883.0,0.74913733]
[1659296819788,0.04,23888.0,23884.0,0.44913733]
[1659296820025,0.28929144,23889.0,23885.0,0.40725733]
[1659296820738,0.33929144,23889.0,23885.0,0.40725733]
[1659296821430,0.03467316,23888.0,23885.0,0.40725733]
[1659296821654,0.03467316,23888.0,23886.0,0.00122492]
[1659296822091,0.07467316,23888.0,23886.0,0.00122492]
[1659296822757,0.300783,23887.0,23886.0,0.00122492]
[1659296822982,0.05,23887.0,23886.0,0.00122492]
[1659296823400,0.12467316,23888.0,23886.0,0.00122492]
[1659296823761,0.300783,23887.0,23886.0,0.00122492]
[1659296823973,0.337783,23887.0,23886.0,0.00122492]
[1659296824181,0.037,23887.0,23886.0,0.00122492]
[1659296824616,0.037,23887.0,23886.0,0.00249495]
[1659296825306,0.09,23888.0,23886.0,0.00249495]
[1659296825307,0.04,23888.0,23886.0,0.00249495]
[1659296826037,0.12,23888.0,23886.0,0.00249495]
[1659296826272,0.05,23887.0,23886.0,0.00249495]
[1659296826479,0.12,23888.0,23886.0,0.00249495]
[1659296826720,0.420783,23888.0,23886.0,0.00249495]
[1659296826933,0.12,23888.0,23886.0,0.00249495]
[1659296827384,0.04,23888.0,23886.0,0.00249495]
[1659296827596,0.25929144,23889.0,23886.0,0.00249495]
[1659296827872,0.04,23888.0,23886.0,0.00249495]
[1659296828087,0.15467316,23888.0,23886.0,0.00249495]
[1659296828747,0.350783,23887.0,23886.0,0.00249495]
[1659296828983,0.15467316,23888.0,23886.0,0.00249495]
[1659296829741,0.03467316,23888.0,23886.0,0.00249495]
[1659296829959,0.05,23887.0,23886.0,0.00249495]
[1659296830185,0.15467316,23888.0,23886.0,0.00249495]
[1659296830401,0.05,23887.0,23886.0,0.00249495]
[1659296830646,0.11467316,23888.0,23886.0,0.00249495]
[1659296831089,0.15467316,23888.0,23886.0,0.00249495]
[1659296831315,0.03467316,23888.0,23886.0,0.00249495]
[1659296831558,0.05,23887.0,23886.0,0.00249495]
[1659296831810,0.07467316,23888.0,23886.0,0.00249495]
[1659296832029,0.15467316,23888.0,23886.0,0.00249495]
[1659296832951,0.12,23888.0,23886.0,0.00431647]
[1659296833167,0.12,23888.0,23886.0,0.00249495]
[1659296833374,0.05,23887.0,23886.0,0.00249495]
[1659296833592,0.04,23888.0,23886.0,0.00249495]
[1659296834059,0.12,23888.0,23886.0,0.00249495]
[1659296834950,0.17,23888.0,23886.0,0.00249495]
[1659296835394,0.09,23888.0,23886.0,0.00249495]
[1659296835876,0.04,23888.0,23886.0,0.00249495]
[1659296836074,0.12,23888.0,23886.0,0.00249495]
[1659296836334,0.05,23887.0,23886.0,0.00249495]
[1659296836548,0.08467316,23887.0,23886.0,0.00249495]
[1659296836766,0.03467316,23887.0,23886.0,0.00249495]
[1659296837920,0.041,23887.0,23886.0,0.00249495]
[1659296838645,0.07567316,23887.0,23886.0,0.00249495]
[1659296839979,0.11667316,23887.0,23886.0,0.00249495]
[1659296840914,0.41745616,23887.0,23886.0,0.00249495]
[1659296841119,0.11667316,23887.0,23886.0,0.00249495]
[1659296841333,0.03467316,23887.0,23886.0,0.00249495]
[1659296841782,0.33545616,23887.0,23886.0,0.00249495]
[1659296842013,0.37645616,23887.0,23886.0,0.00249495]
[1659296842256,0.07567316,23887.0,23886.0,0.00249495]
[1659296842446,0.37645616,23887.0,23886.0,0.00249495]
[1659296843128,0.07567316,23887.0,23886.0,0.00249495]
[1659296843350,0.03467316,23887.0,23886.0,0.00249495]
[1659296843791,0.09,23888.0,23886.0,0.00249495]
[1659296844016,0.036,23887.0,23886.0,0.00249495]
[1659296845423,0.09,23888.0,23886.0,0.00249495]
[1659296845641,0.04,23888.0,23886.0,0.00249495]
[1659296846117,0.041,23887.0,23886.0,0.00249495]
[1659296847010,0.041,23887.0,23886.0,0.00268162]
[1659296847237,0.09,23888.0,23886.0,0.00249495]
[1659296847465,0.07467316,23888.0,23886.0,0.00249495]
[1659296847916,0.45545616,23888.0,23886.0,0.00249495]
[1659296848134,0.11467316,23888.0,23886.0,0.00249495]
[1659296848350,0.15467316,23888.0,23886.0,0.00249495]
[1659296848582,0.05,23887.0,23886.0,0.00249495]
[1659296848774,0.11467316,23888.0,23886.0,0.00249495]
[1659296848775,0.15467316,23888.0,23886.0,0.00249495]
[1659296848986,0.11467316,23888.0,23886.0,0.00249495]
[1659296849155,0.45545616,23888.0,23886.0,0.00249495]
[1659296849304,0.300783,23887.0,23886.0,0.00249495]
[1659296849688,0.37545616,23888.0,23886.0,0.00268162]
[1659296849978,0.341783,23887.0,23886.0,0.00249495]
[1659296850194,0.041,23887.0,23886.0,0.00249495]
[1659296851341,0.05,23888.0,23886.0,0.00249495]
[1659296851550,0.25929144,23889.0,23886.0,0.00249495]
[1659296851763,0.340783,23888.0,23886.0,0.00249495]
[1659296851983,0.12,23888.0,23886.0,0.00268162]
[1659296852198,0.380783,23888.0,23886.0,0.00268162]
[1659296852433,0.12,23888.0,23886.0,0.00268162]
[1659296852673,0.87804033,23888.0,23883.0,0.99622492]
[1659296852896,0.6032,23884.0,23883.0,0.99622492]
[1659296853135,1.31124033,23884.0,23883.0,0.99622492]
[1659296853354,1.88185944,23884.0,23883.0,0.99622492]
[1659296853571,1.47460211,23884.0,23883.0,0.99622492]
[1659296854014,1.53860211,23884.0,23883.0,0.99622492]
[1659296854453,1.53860211,23884.0,23879.0,6.552e-05]
[1659296854672,0.300783,23883.0,23879.0,6.552e-05]
[1659296854944,0.300783,23883.0,23874.0,0.07333]
[1659296854945,0.74271349,23882.0,23874.0,0.07333]
[1659296855216,0.74271349,23882.0,23874.0,0.04188]
[1659296855217,0.19,23880.0,23874.0,0.04188]
[1659296855437,0.59725733,23880.0,23879.0,6.552e-05]
[1659296855661,0.8,23879.0,23873.0,0.32493436]
[1659296855879,0.85,23879.0,23873.0,0.40725733]
[1659296856103,0.20940501,23877.0,23873.0,0.74564584]
[1659296856325,0.50394142,23874.0,23873.0,0.74564584]
[1659296856551,0.50394142,23874.0,23873.0,0.40725733]
[1659296856552,0.55394142,23874.0,23873.0,0.40725733]
[1659296856787,0.55394142,23874.0,23873.0,0.74264584]
[1659296858004,0.55394142,23874.0,23873.0,0.82264584]
[1659296858451,0.55394142,23874.0,23873.0,0.82275082]
[1659296858887,0.55394142,23874.0,23873.0,0.86452584]
[1659296859309,0.55394142,23874.0,23873.0,0.78452584]
[1659296859849,0.55394142,23874.0,23873.0,0.86452584]
[1659296860098,0.55394142,23874.0,23873.0,0.82264584]
[1659296860782,0.55605514,23874.0,23873.0,0.82264584]
[1659296861228,0.55605514,23874.0,23873.0,0.74264584]
[1659296861859,0.55605514,23874.0,23873.0,0.82175082]
[1659296862062,0.55605514,23874.0,23873.0,0.82164584]
[1659296863335,0.55605514,23874.0,23873.0,0.74264584]
[1659296863992,0.55605514,23874.0,23873.0,0.82164584]
[1659296864832,0.55605514,23874.0,23873.0,0.82287775]
[1659296865285,0.55605514,23874.0,23873.0,0.74387775]
[1659296865917,0.60005514,23874.0,23873.0,0.74387775]
[1659296867266,0.55605514,23874.0,23873.0,0.33662042]
[1659296867393,0.55605514,23874.0,23873.0,0.33655819]
[1659296867592,0.55605514,23874.0,23873.0,0.00123191]
[1659296867822,0.55605514,23874.0,23873.0,0.33662042]
[1659296868022,0.59305514,23874.0,23873.0,0.33662042]
[1659296868691,0.89383814,23874.0,23873.0,0.33662042]
[1659296869044,0.59305514,23874.0,23873.0,0.26872042]
[1659296869262,0.59305514,23874.0,23872.0,0.00253072]
[1659296869263,0.55605514,23874.0,23872.0,0.00253072]
[1659296869461,0.55605514,23874.0,23873.0,0.31536941]
[1659296869946,0.59305514,23874.0,23873.0,0.31536941]
[1659296870467,0.89383814,23874.0,23873.0,0.31536941]
[1659296870653,0.59305514,23874.0,23873.0,0.31536941]
[1659296870863,0.89383814,23874.0,23873.0,0.31536941]
[1659296871289,0.85683814,23874.0,23873.0,0.31536941]
[1659296871512,0.55605514,23874.0,23873.0,0.31536941]
[1659296871748,0.85683814,23874.0,23873.0,0.31536941]
[1659296871990,0.89283814,23874.0,23873.0,0.31536941]
[1659296873084,0.89283814,23874.0,23873.0,0.26446386]
[1659296873308,0.85683814,23874.0,23873.0,0.26446386]
[1659296873970,0.89283814,23874.0,23873.0,0.26446386]
[1659296874620,0.89283814,23874.0,23872.0,0.00253349]
[1659296874847,0.440783,23873.0,23872.0,0.20281385]
[1659296875490,0.440783,23873.0,23872.0,0.20274504]
[1659296875952,0.479783,23873.0,23872.0,0.20274504]
[1659296876152,0.479783,23873.0,23872.0,0.00246468]
[1659296876376,0.479783,23873.0,23872.0,0.18417501]
[1659296876597,0.479783,23873.0,23872.0,0.00246468]
[1659296876806,0.479783,23873.0,23872.0,0.13856283]
[1659296877658,0.479783,23873.0,23872.0,0.00246468]
[1659296877886,0.440783,23873.0,23872.0,0.10715553]
[1659296878374,0.88604033,23873.0,23872.0,0.00246468]
[1659296878608,0.93604033,23873.0,23872.0,0.07577553]
[1659296878841,0.99864033,23873.0,23872.0,0.00246468]
[1659296879305,0.12596,23872.0,23871.0,6.951e-05]
[1659296879545,1.048443,23872.0,23869.0,0.0021]
[1659296879765,0.14,23870.0,23869.0,0.0021]
[1659296879991,0.490783,23870.0,23869.0,0.0021695]
[1659296880682,0.540783,23870.0,23869.0,0.0021695]
[1659296881182,0.540783,23870.0,23869.0,0.00227838]
[1659296881186,0.14,23868.0,23867.0,0.0002]
[1659296881405,0.19,23868.0,23867.0,0.0002]
[1659296882080,0.199,23868.0,23867.0,0.0002]
[1659296883467,0.19,23868.0,23867.0,0.0002]
[1659296883755,0.19,23868.0,23867.0,0.00135354]
[1659296883979,0.239,23868.0,23867.0,0.00135354]
[1659296884468,0.239,23868.0,23867.0,0.04468354]
[1659296885188,0.239,23868.0,23867.0,0.00135354]
[1659296885398,0.19,23868.0,23867.0,0.00135354]
[1659296885852,0.19211367,23868.0,23867.0,0.00135354]
[1659296886077,0.20411367,23868.0,23867.0,0.00135354]
[1659296887447,0.19211367,23868.0,23867.0,0.00135354]
[1659296887883,0.20911367,23868.0,23867.0,0.00135354]
[1659296889276,0.19211367,23868.0,23867.0,0.00135354]
[1659296889959,0.19311367,23868.0,23867.0,0.00135354]
[1659296890662,0.05311367,23868.0,23867.0,0.00135354]
[1659296891350,0.00211367,23868.0,23867.0,0.00135354]
[1659296891805,0.05,23870.0,23867.0,0.00135354]
[1659296892025,0.006,23868.0,23867.0,0.00135354]
[1659296893119,0.006,23868.0,23867.0,0.04468354]
[1659296893348,0.05,23870.0,23867.0,0.04468354]
[1659296893582,0.05,23870.0,23868.0,0.04188]
[1659296894010,0.086,23870.0,23868.0,0.04188]
[1659296894667,0.03467316,23869.0,23868.0,0.04188]
[1659296895578,0.03467316,23869.0,23868.0,0.44924973]
[1659296895579,0.300783,23869.0,23868.0,0.44924973]
[1659296895796,0.05,23870.0,23868.0,0.44924973]
[1659296896030,0.042,23869.0,23868.0,0.44924973]
[1659296896250,0.042,23869.0,23868.0,0.44913733]
[1659296896909,0.042,23869.0,23868.0,0.44924973]
[1659296897145,0.042,23869.0,23868.0,0.55396773]
[1659296897373,0.05211566,23870.0,23868.0,0.55396773]
[1659296898109,0.08911566,23870.0,23868.0,0.55396773]
[1659296898349,0.08911566,23870.0,23868.0,0.55404094]
[1659296898817,0.03911566,23870.0,23869.0,0.40725733]
[1659296899047,0.20944,23877.0,23869.0,0.40725733]
[1659296899048,0.31422562,23882.0,23870.0,0.00211]
[1659296899267,0.3796,23884.0,23873.0,0.40725733]
[1659296899504,1.35529986,23884.0,23873.0,0.40725733]
[1659296899741,1.35529986,23884.0,23875.0,7.303e-05]
[1659296899966,1.43429986,23884.0,23876.0,0.40725733]
[1659296900185,7.3e-05,23882.0,23876.0,0.40725733]
[1659296900890,1.43429986,23884.0,23876.0,0.40725733]
[1659296901127,0.40725733,23881.0,23870.0,0.05566882]
[1659296901358,0.363983,23880.0,23871.0,1.00135733]
[1659296901598,1.46595733,23880.0,23872.0,0.40725733]
[1659296901812,0.350783,23879.0,23874.0,7.303e-05]
[1659296902036,1.46595733,23880.0,23874.0,7.303e-05]
[1659296902037,0.300783,23878.0,23874.0,7.303e-05]
[1659296902285,0.03467316,23877.0,23874.0,7.303e-05]
[1659296903010,0.03467316,23877.0,23872.0,0.40725733]
[1659296903446,0.58845329,23874.0,23872.0,0.40725733]
[1659296903655,0.62312645,23874.0,23872.0,0.40725733]
[1659296904114,0.62312645,23874.0,23872.0,0.42058803]
[1659296904417,0.58845329,23874.0,23872.0,0.42058803]
[1659296904634,0.58845329,23874.0,23872.0,0.52529503]
[1659296904863,0.58845329,23874.0,23872.0,0.52536934]
[1659296905106,0.59041154,23874.0,23872.0,0.73478234]
[1659296905317,0.59041154,23874.0,23872.0,0.72378234]
[1659296905765,0.59041154,23874.0,23872.0,0.72370803]
[1659296905988,0.59041154,23874.0,23872.0,0.80270803]
[1659296906239,0.59041154,23874.0,23872.0,0.80277209]
[1659296906465,0.59041154,23874.0,23872.0,0.84465209]
[1659296906704,0.59041154,23874.0,23872.0,0.80277209]
[1659296907165,0.6250847,23874.0,23872.0,0.80270803]
[1659296907393,0.59041154,23874.0,23872.0,0.72370803]
[1659296907829,0.59041154,23874.0,23872.0,0.72377849]
[1659296908047,0.59041154,23874.0,23872.0,0.80277849]
[1659296908736,0.59041154,23874.0,23872.0,0.80270803]
[1659296909178,0.59041154,23874.0,23872.0,0.80277849]
[1659296909390,0.59041154,23874.0,23872.0,0.72377849]
[1659296909642,0.59041154,23874.0,23872.0,0.31652116]
[1659296909849,0.79984141,23874.0,23872.0,0.31652116]
[1659296910110,0.79984141,23874.0,23872.0,0.3954507]
[1659296910350,0.79984141,23874.0,23871.0,0.104705]
[1659296910351,0.15941316,23873.0,23866.0,1.0022]
[1659296910588,0.49193049,23873.0,23872.0,6.41e-05]
[1659296910823,0.79271349,23873.0,23872.0,6.41e-05]
[1659296911722,0.79271349,23873.0,23866.0,1.45133733]
[1659296911945,0.56393049,23873.0,23871.0,6.41e-05]
[1659296912245,1.090783,23872.0,23871.0,6.41e-05]
[1659296912927,1.090783,23872.0,23867.0,0.104725]
[1659296913151,0.25945188,23871.0,23867.0,0.104725]
[1659296913361,0.25945188,23871.0,23870.0,6.41e-05]
[1659296914077,0.60123488,23871.0,23870.0,6.41e-05]
[1659296914290,0.60123488,23871.0,23869.0,0.00112896]
[1659296914511,0.30045188,23871.0,23869.0,0.00112896]
[1659296914736,0.30045188,23871.0,23869.0,0.00119482]
[1659296915199,0.30242152,23871.0,23869.0,0.00119482]
[1659296915421,0.26142152,23871.0,23869.0,0.00119482]
[1659296915877,0.26142152,23871.0,23869.0,0.00112896]
[1659296916152,0.29942152,23871.0,23869.0,0.00119482]
[1659296916370,0.29942152,23871.0,23866.0,0.55226415]
[1659296917055,0.29942152,23871.0,23869.0,0.00112938]
[1659296917292,0.03467316,23870.0,23869.0,0.00112938]
[1659296918188,0.21142152,23871.0,23869.0,0.00028247]
[1659296918412,0.036,23870.0,23868.0,0.34188]
[1659296918643,0.036,23870.0,23869.0,0.146599]
[1659296918870,0.036,23870.0,23869.0,0.85385633]
[1659296919314,0.036,23870.0,23869.0,0.8541388]
[1659296919749,0.00196964,23871.0,23869.0,0.8855888]
[1659296920093,0.00196964,23871.0,23870.0,0.44913733]
[1659296920097,0.5987,23879.0,23870.0,0.44913733]
[1659296920098,0.00196965,23872.0,23870.0,0.44913733]
[1659296920317,0.00196965,23872.0,23871.0,0.74913733]
[1659296921222,0.00196965,23872.0,23871.0,0.44913733]
[1659296921905,0.05496965,23872.0,23871.0,0.44913733]
[1659296922620,0.04996965,23872.0,23871.0,0.74913733]
[1659296922835,0.04996965,23872.0,23871.0,0.85384033]
[1659296923272,0.5056851,23876.0,23871.0,0.85384033]
[1659296923491,0.05,23875.0,23872.0,0.40725733]
[1659296923709,0.24408135,23874.0,23872.0,0.51196133]
[1659296923944,0.25940819,23874.0,23872.0,0.51196133]
[1659296924816,0.29408135,23874.0,23872.0,0.51196133]
[1659296925265,0.25940819,23874.0,23872.0,0.51196133]
[1659296925735,0.29408135,23874.0,23872.0,0.51196133]
[1659296925953,0.33008135,23874.0,23872.0,0.51196133]
[1659296926933,0.33008135,23874.0,23872.0,0.51309505]
[1659296927160,0.29540819,23874.0,23872.0,0.51309505]
[1659296927385,0.25940819,23874.0,23872.0,0.51309505]
[1659296928015,0.30140819,23874.0,23872.0,0.51309505]
[1659296928247,0.03467316,23873.0,23872.0,0.51309505]
[1659296928680,0.30140819,23874.0,23872.0,0.51309505]
[1659296929374,0.03467316,23873.0,23872.0,0.51309505]
[1659296929627,0.25940819,23874.0,23872.0,0.51309505]
[1659296930066,0.04,23873.0,23872.0,0.51309505]
[1659296930724,0.07467316,23873.0,23872.0,0.51309505]
[1659296931384,0.04,23873.0,23872.0,0.51309505]
[1659296931622,0.07467316,23873.0,23872.0,0.51309505]
[1659296931846,0.25940819,23874.0,23872.0,0.51309505]
[1659296933218,0.039,23873.0,23872.0,0.51309505]
[1659296934557,0.25940819,23874.0,23872.0,0.51309505]
[1659296934781,0.039,23873.0,23872.0,0.51309505]
[1659296935681,0.039,23873.0,23872.0,0.81309505]
[1659296935897,0.039,23873.0,23872.0,0.51309505]
[1659296936118,0.048,23873.0,23872.0,0.51309505]
[1659296937334,0.25940819,23874.0,23872.0,0.51309505]
[1659296937543,0.29408135,23874.0,23872.0,0.51309505]
[1659296937773,0.25940819,23874.0,23872.0,0.51309505]
[1659296937990,0.30140819,23874.0,23872.0,0.51309505]
[1659296938906,0.30140819,23874.0,23872.0,0.51452896]
[1659296939369,0.25940819,23874.0,23872.0,0.51452896]
[1659296939596,0.29408135,23874.0,23872.0,0.51309505]
[1659296940036,0.30740819,23874.0,23872.0,0.51452896]
[1659296940258,0.30740819,23874.0,23872.0,0.51309505]
[1659296941384,0.25940819,23874.0,23872.0,0.51309505]
[1659296941910,0.03467316,23873.0,23872.0,0.51309505]
[1659296942138,0.30740819,23874.0,23872.0,0.51316673]
[1659296943275,0.25940819,23874.0,23872.0,0.51316673]
[1659296943722,0.25940819,23874.0,23872.0,0.72257073]
[1659296943951,0.30240819,23874.0,23872.0,0.72257073]
[1659296944373,0.33708135,23874.0,23872.0,0.72257073]
[1659296944614,0.33708135,23874.0,23872.0,0.72249905]
[1659296945034,0.30240819,23874.0,23872.0,0.72249905]
[1659296945290,0.25940819,23874.0,23872.0,0.72249905]
[1659296946019,0.30240819,23874.0,23872.0,0.72249905]
[1659296947140,0.30232136,23874.0,23872.0,0.72249905]
[1659296947361,0.25932136,23874.0,23872.0,0.72249905]
[1659296948036,0.30232136,23874.0,23873.0,0.00065164]
[1659296948320,0.30232136,23874.0,23872.0,0.72249905]
[1659296948992,0.33699452,23874.0,23872.0,0.72249905]
[1659296949407,0.25932136,23874.0,23872.0,0.72249905]
[1659296953430,0.30232136,23874.0,23872.0,0.72249905]
[1659296954542,0.25932136,23874.0,23872.0,0.72249905]
[1659296956806,0.30232136,23874.0,23872.0,0.72249905]
[1659296958199,0.25932136,23874.0,23872.0,0.72249905]
[1659296960227,0.25932136,23874.0,23873.0,0.00139474]
[1659296961199,0.25932136,23874.0,23872.0,1.14131705]
[1659296962722,0.25932136,23874.0,23873.0,6.972e-05]
[1659296962942,0.30232136,23874.0,23873.0,6.972e-05]
[1659296963844,0.34532136,23874.0,23873.0,6.972e-05]
[1659296964069,0.25932136,23874.0,23872.0,0.73400944]
[1659296964305,0.25932136,23874.0,23868.0,6.557e-05]
[1659296964306,0.84804033,23873.0,23868.0,6.557e-05]
[1659296964572,0.300783,23872.0,23866.0,1.0]
[1659296964816,0.05,23872.0,23866.0,1.40725733]
[1659296965053,0.54725733,23873.0,23868.0,6.556e-05]
[1659296965275,1.14,23869.0,23868.0,6.556e-05]
[1659296965491,1.490783,23869.0,23868.0,6.556e-05]
[1659296965720,0.490783,23869.0,23868.0,6.556e-05]
[1659296965941,0.490783,23869.0,23866.0,1.0]
[1659296966163,0.54680587,23867.0,23866.0,1.0]